[Event "44th Chess Olympiad Open 2022"]
[Site "Chennai"]
[Date "2022.08.06"]
[Round "8.38"]
[White "Stark, John"]
[Black "Mehdi Hasan Parag"]
[Result "0-1"]
[WhiteElo "2028"]
[BlackElo "2227"]
[Annotator "RC"]
[PlyCount "142"]
[EventDate "2022.??.??"]
[TimeControl "60"]

1. b3 {[%emt 0:00:03]} c5 {[%emt 0:00:30]} 2. Bb2 {[%emt 0:00:06]} Nc6 {
[%emt 0:00:19]} 3. e3 {[%emt 0:00:20]} Nf6 {[%emt 0:00:17]} 4. Nf3 {[%emt 0:00:
00]} g6 {[%emt 0:00:41]} 5. Bxf6 {[%emt 0:01:26]} exf6 {[%emt 0:00:04]} 6. c4 {
[%emt 0:00:04]} Bg7 {[%emt 0:00:31]} 7. Nc3 {[%emt 0:00:09]} f5 {[%emt 0:00:24]
} 8. Rc1 {[%emt 0:00:40]} O-O {[%emt 0:00:24]} 9. Be2 {[%emt 0:03:41]} d6 {
[%emt 0:01:10]} 10. O-O {[%emt 0:01:19]} g5 {[%emt 0:02:37]} 11. Ne1 {[%emt 0:
00:00]} Re8 {[%emt 0:01:41]} 12. Bd3 {[%emt 0:07:12]} g4 {[%emt 0:05:29]} 13.
Qc2 {[%emt 0:12:05]} Nb4 {[%emt 0:04:52]} 14. Qb1 {[%emt 0:00:02]} Qg5 {
[%emt 0:01:19]} 15. a3 {[%emt 0:04:23]} Nxd3 {[%emt 0:00:38]} 16. Nxd3 {
[%emt 0:01:53]} Re6 {[%emt 0:01:33]} 17. f4 {[%emt 0:04:13]} Qh5 {[%emt 0:00:
00]} 18. g3 {[%emt 0:02:35]} Bxc3 {[%emt 0:02:26]} 19. Rxc3 {[%emt 0:00:14]} b6
{[%emt 0:00:39]} 20. Qe1 {[%emt 0:07:19]} Bb7 {[%emt 0:00:54]} 21. Qf2 {
[%emt 0:01:57]} Rae8 {[%emt 0:01:29]} 22. Rcc1 {[%emt 0:00:33]} Rh6 {[%emt 0:
00:00]} 23. Nb2 {[%emt 0:04:31]} Qh3 {[%emt 0:11:25]} 24. Rc2 {[%emt 0:02:05]}
Rhe6 {[%emt 0:01:35]} 25. Re1 {[%emt 0:00:34]} Qh6 {[%emt 0:05:57]} 26. Nd1 {
[%emt 0:06:26]} Qg7 {[%emt 0:10:01]} 27. Nc3 {[%emt 0:03:36]} Bf3 {[%emt 0:00:
00]} 28. h4 {[%emt 0:00:55]} Qd4 {[%emt 0:05:04]} 29. Nb5 {[%emt 0:07:23]} Qe4
{[%emt 0:02:34]} 30. Rcc1 {[%emt 0:03:06]} Qb7 {[%emt 0:00:28]} 31. Nc3 {
[%emt 0:01:59]} a6 {[%emt 0:00:31]} 32. Qf1 {[%emt 0:00:47]} d5 {[%emt 0:04:49]
} 33. cxd5 {[%emt 0:04:30]} Bxd5 {[%emt 0:00:09]} 34. Qd3 {[%emt 0:03:54]} Bxb3
{[%emt 0:03:52]} 35. Qxf5 {[%emt 0:01:13]} Qf3 {[%emt 0:00:59]} 36. Re2 {
[%emt 0:00:16]} Re5 {[%emt 0:15:44]} 37. Qb1 {[%emt 0:04:16]} Bd5 {[%emt 0:00:
00]} 38. Nxd5 {[%emt 0:04:42]} Rxd5 {[%emt 0:00:11]} 39. Rg2 {[%emt 0:00:20]}
b5 {[%emt 0:00:38]} 40. Qb2 {[%emt 0:04:47]} c4 {[%emt 0:00:36]} 41. Qf6 {
[%emt 0:30:49]} Re6 {[%emt 0:30:29]} 42. Qb2 {[%emt 0:00:00]} Red6 {[%emt 0:00:
00]} 43. Qc3 {[%emt 0:00:00]} Qe4 {[%emt 0:00:00]} 44. Rf1 {[%emt 0:00:00]} f5
{[%emt 0:00:00]} 45. Qb4 {[%emt 0:00:00]} Rd3 {[%emt 0:00:00]} 46. a4 {[%emt 0:
00:00]} Qd5 {[%emt 0:00:00]} 47. axb5 {[%emt 0:00:00]} Qxb5 {[%emt 0:00:00]}
48. Qxb5 {[%emt 0:00:09]} axb5 {[%emt 0:00:00]} 49. Rb1 {[%emt 0:00:08]} Rb6 {
[%emt 0:00:00]} 50. Rb4 {[%emt 0:02:05]} Rb3 {[%emt 0:00:00]} 51. Rxb3 {
[%emt 0:00:42]} cxb3 {[%emt 0:00:00]} 52. Kf2 {[%emt 0:00:32]} Kf7 {[%emt 0:00:
00]} 53. Rg1 {[%emt 0:00:12]} Ke6 {[%emt 0:00:00]} 54. Rb1 {[%emt 0:01:02]} Kd5
{[%emt 0:00:00]} 55. Rxb3 {[%emt 0:00:58]} b4 {[%emt 0:00:00]} 56. Ke2 {
[%emt 0:00:39]} Kc4 {[%emt 0:00:00]} 57. Rb1 {[%emt 0:00:35]} b3 {[%emt 0:00:
00]} 58. Rc1+ {[%emt 0:00:31]} Kb4 {[%emt 0:00:13]} 59. e4 {[%emt 0:00:48]}
fxe4 {[%emt 0:01:01]} 60. Ke3 {[%emt 0:00:10]} Re6 {[%emt 0:01:01]} 61. f5 {
[%emt 0:00:28]} Re8 {[%emt 0:00:13]} 62. Kd4 {[%emt 0:01:43]} b2 {[%emt 0:00:
00]} 63. Rf1 {[%emt 0:00:31]} Kb3 {[%emt 0:01:33]} 64. f6 {[%emt 0:00:10]} Kc2
{[%emt 0:00:38]} 65. f7 {[%emt 0:00:28]} Rf8 {[%emt 0:00:16]} 66. Kxe4 {
[%emt 0:00:48]} Rxf7 {[%emt 0:00:54]} 67. Rxf7 {[%emt 0:00:30]} b1=Q {[%emt 0:
00:00]} 68. Rf4 {[%emt 0:00:37]} Kxd2+ {[%emt 0:00:00]} 69. Ke5 {[%emt 0:00:12]
} Qg6 {[%emt 0:00:05]} 70. Rf5 {[%emt 0:00:45]} Ke3 {[%emt 0:00:21]} 71. Rf4 {
[%emt 0:00:34]} h5 {[%emt 0:00:26]} 0-1

[Event "44th Chess Olympiad Open 2022"]
[Site "Chennai"]
[Date "2022.08.06"]
[Round "8.39"]
[White "Matamoros Franco, Carlos S."]
[Black "Silva, David"]
[Result "1-0"]
[WhiteElo "2459"]
[BlackElo "2315"]
[Annotator "TA"]
[PlyCount "65"]
[EventDate "2022.??.??"]
[TimeControl "60"]

{[%evp 15,65,25,33,25,31,28,34,37,41,49,75,72,75,74,95,91,87,89,89,85,97,82,82,
52,37,49,185,175,201,173,178,177,181,170,150,191,171,152,256,252,293,285,272,
272,431,380,431,415,471,463,405,406]} 1. Nf3 {[%emt 0:00:03]} Nf6 {[%emt 0:00:
00]} 2. g3 {[%emt 0:00:49]} g6 {[%emt 0:00:09]} 3. Bg2 {[%emt 0:00:06]} Bg7 {
[%emt 0:00:05]} 4. c4 {[%emt 0:02:43]} O-O {[%emt 0:00:09]} 5. Nc3 {[%emt 0:00:
00]} c5 {[%emt 0:01:05]} 6. d4 {[%emt 0:00:40]} Nc6 {[%emt 0:01:01]} 7. dxc5 {
[%emt 0:06:12]} Qa5 {[%emt 0:01:07]} 8. O-O {[%emt 0:00:07]} Qxc5 {[%emt 0:00:
00]} 9. b3 {[%emt 0:03:02] A31: Symmetrical English: 2 Nf3 Nf6 3 d4.} d6 {
[%emt 0:01:54]} 10. Bb2 {[%emt 0:01:17]} Qh5 {[%emt 0:00:27] [#]} 11. h4 $146 {
[%emt 0:00:13] White is slightly better.} ({Predecessor:} 11. Qd2 Bh6 12. Qd1
Bg4 13. Nd5 Nxd5 14. cxd5 Ne5 15. Nxe5 dxe5 16. Re1 Rac8 17. Ba3 {½-½ (58)
Venkatesh,M (2400)-Fressinet,L (2651) Porticcio 2017}) 11... Ne4 {[%emt 0:00:
00]} 12. Qc1 {[%emt 0:01:09]} Bh6 {[%emt 0:06:17]} 13. Qc2 {[%emt 0:09:40]} Nf6
{[%emt 0:00:14]} 14. Rfe1 {[%emt 0:13:35]} Bf5 {[%emt 0:01:47]} 15. e4 {
[%emt 0:03:13][%cal Ye2e4,Ye4e5,Ye5f6]} Nb4 {[%emt 0:02:17]} 16. Qb1 {[%emt 0:
01:10]} Bg4 {[%emt 0:00:08]} 17. Nh2 {[%emt 0:02:25]} Bd2 {[%emt 0:00:00]} 18.
Nxg4 {[%emt 0:01:42]} Qxg4 {[%emt 0:01:02]} 19. e5 {[%emt 0:25:23]} Bxe1 {
[%emt 0:06:06]} 20. exf6 {[%emt 0:03:16]} Bxf2+ {[%emt 0:00:11] A mistake that
costs the game.} 21. Kxf2 $18 {[%emt 0:00:04][%cal Yg1f2,Yf2e2,Ye2f1] Hoping
for a3.} Qd4+ {[%emt 0:00:16] [#]} 22. Ke2 $1 {[%emt 0:00:00] aiming for Ne4.
Active counter play!} Qg4+ {[%emt 0:01:32]} 23. Kf1 {[%emt 0:16:06]} Qxg3 {
[%emt 0:01:29]} 24. Qe1 $36 {[%emt 0:00:14] White is in control.} ({Don't do} 
24. fxe7 Qf4+ 25. Ke2 (25. Kg1 Qd4+ 26. Kf1 Qf6+ 27. Ke2 Qxe7+ 28. Qe4 Rae8 $16
) 25... Rfe8) 24... Qf4+ {[%emt 0:00:12]} 25. Qf2 {[%emt 0:00:07] Dancing on a
razor blade.} Qxf2+ {[%emt 0:04:03]} 26. Kxf2 {[%emt 0:00:03]} e6 {[%emt 0:01:
20]} (26... Nd3+ $16 27. Ke3 Nxb2) 27. Rd1 {[%emt 0:00:24]} Rab8 {[%emt 0:02:
44]} 28. Ba3 {[%emt 0:05:25] A strong pair of Bishops.} ({Not} 28. Rxd6 Rfd8
29. Rxd8+ Rxd8 $14) 28... a5 {[%emt 0:00:44]} 29. Rxd6 {[%emt 0:00:17]} Rfd8 {
[%emt 0:02:04]} (29... b6 $142 30. Be4 Rfd8 31. Rxd8+ Rxd8) 30. Rxd8+ {[%emt 0:
01:10]} Rxd8 {[%emt 0:00:08]} 31. Bxb7 {[%emt 0:00:00]} Rd2+ {[%emt 0:00:11]}
32. Ke1 {[%emt 0:02:13]} Rd7 {[%emt 0:00:12]} 33. Be4 {[%emt 0:00:05] Weighted
Error Value: White=0.02 (flawless) /Black=0.29 (precise)} 1-0

[Event "44th Chess Olympiad Open 2022"]
[Site "Chennai"]
[Date "2022.08.06"]
[Round "8.39"]
[White "Noboa Silva, Kevin"]
[Black "Dias, Vanderson"]
[Result "1-0"]
[WhiteElo "2304"]
[BlackElo "2139"]
[Annotator "RC"]
[PlyCount "133"]
[EventDate "2022.??.??"]
[TimeControl "60"]

1. d4 {[%emt 0:00:04]} d5 {[%emt 0:00:47]} 2. c4 {[%emt 0:00:32]} e6 {[%emt 0:
00:00]} 3. Nc3 {[%emt 0:01:01]} Nf6 {[%emt 0:00:13]} 4. cxd5 {[%emt 0:00:35]}
exd5 {[%emt 0:00:25]} 5. Bg5 {[%emt 0:00:10]} Be7 {[%emt 0:00:39]} 6. e3 {
[%emt 0:00:21]} c6 {[%emt 0:04:11]} 7. Bd3 {[%emt 0:00:37]} Be6 {[%emt 0:00:06]
} 8. Nge2 {[%emt 0:00:24]} Bg4 {[%emt 0:04:01]} 9. f3 {[%emt 0:03:41]} Bh5 {
[%emt 0:04:21]} 10. O-O {[%emt 0:01:46]} Bg6 {[%emt 0:01:07]} 11. Kh1 {[%emt 0:
00:00]} Bxd3 {[%emt 0:02:06]} 12. Qxd3 {[%emt 0:00:07]} O-O {[%emt 0:00:14]}
13. Rad1 {[%emt 0:02:16]} Na6 {[%emt 0:03:29]} 14. e4 {[%emt 0:01:39]} Nc7 {
[%emt 0:01:02]} 15. Be3 {[%emt 0:02:47]} Nd7 {[%emt 0:10:04]} 16. Ng3 {[%emt 0:
00:00]} Bg5 {[%emt 0:07:11]} 17. Nf5 {[%emt 0:01:39]} Bxe3 {[%emt 0:00:28]} 18.
Qxe3 {[%emt 0:00:08]} Nb6 {[%emt 0:06:29]} 19. b3 {[%emt 0:06:47]} Qd7 {
[%emt 0:03:51]} 20. Rfe1 {[%emt 0:06:23]} Rad8 {[%emt 0:01:30]} 21. Qg5 {
[%emt 0:02:31]} f6 {[%emt 0:07:41]} 22. Qg4 {[%emt 0:04:12]} g6 {[%emt 0:00:36]
} 23. Qg3 {[%emt 0:01:36]} Kh8 {[%emt 0:01:44]} 24. Ne3 {[%emt 0:01:11]} Rde8 {
[%emt 0:03:50]} 25. Ng4 {[%emt 0:00:52]} Re7 {[%emt 0:10:25]} 26. Qh4 {[%emt 0:
00:00]} Qd6 {[%emt 0:07:47]} 27. e5 {[%emt 0:01:02]} fxe5 {[%emt 0:00:40]} 28.
Nxe5 {[%emt 0:00:17]} Ree8 {[%emt 0:02:44]} 29. Re3 {[%emt 0:05:49]} Kg7 {
[%emt 0:02:25]} 30. Rde1 {[%emt 0:00:55]} Qf6 {[%emt 0:01:15]} 31. Qg3 {
[%emt 0:06:30]} Qf4 {[%emt 0:00:29]} 32. Qxf4 {[%emt 0:07:50]} Rxf4 {[%emt 0:
00:00]} 33. Ne2 {[%emt 0:00:01]} Rff8 {[%emt 0:00:57]} 34. Nc1 {[%emt 0:02:21]}
Nb5 {[%emt 0:01:44]} 35. Ne2 {[%emt 0:01:36]} Nd6 {[%emt 0:00:33]} 36. g4 {
[%emt 0:00:49]} Nf7 {[%emt 0:00:57]} 37. Kg2 {[%emt 0:00:32]} Nxe5 {[%emt 0:00:
00]} 38. dxe5 {[%emt 0:00:15]} c5 {[%emt 0:05:11]} 39. Nc1 {[%emt 0:01:06]} d4
{[%emt 0:00:24]} 40. Re4 {[%emt 0:00:32]} Nd5 {[%emt 0:00:07]} 41. Nd3 {
[%emt 0:30:16]} b6 {[%emt 0:30:20]} 42. Kg3 {[%emt 0:03:21]} g5 {[%emt 0:00:22]
} 43. Rc1 {[%emt 0:08:23]} a5 {[%emt 0:01:52]} 44. a4 {[%emt 0:02:42]} Kf7 {
[%emt 0:01:57]} 45. h4 {[%emt 0:03:11]} h6 {[%emt 0:00:20]} 46. hxg5 {[%emt 0:
00:00]} hxg5 {[%emt 0:00:00]} 47. Ree1 {[%emt 0:03:30]} Rh8 {[%emt 0:02:46]}
48. Rh1 {[%emt 0:02:10]} Ke6 {[%emt 0:00:00]} 49. Rce1 {[%emt 0:00:00]} Ne3 {
[%emt 0:00:00]} 50. f4 {[%emt 0:00:00]} gxf4+ {[%emt 0:00:00]} 51. Nxf4+ {
[%emt 0:00:00]} Kd7 {[%emt 0:00:00]} 52. e6+ {[%emt 0:00:00]} Kd6 {[%emt 0:00:
00]} 53. Rxh8 {[%emt 0:00:00]} Rxh8 {[%emt 0:00:00]} 54. g5 {[%emt 0:00:00]}
Rg8 {[%emt 0:00:00]} 55. g6 {[%emt 0:00:00]} b5 {[%emt 0:00:00]} 56. axb5 {
[%emt 0:00:00]} a4 {[%emt 0:00:00]} 57. bxa4 {[%emt 0:00:00]} c4 {[%emt 0:00:
00]} 58. Kf3 {[%emt 0:00:00]} Kc5 {[%emt 0:00:00]} 59. Ke4 {[%emt 0:00:00]} c3
{[%emt 0:00:00]} 60. Kd3 {[%emt 0:00:00]} Kb4 {[%emt 0:00:00]} 61. Ne2 {
[%emt 0:00:00]} Rxg6 {[%emt 0:00:00]} 62. Nxd4 {[%emt 0:00:00]} Nd5 {[%emt 0:
00:00]} 63. e7 {[%emt 0:00:00]} Rg3+ {[%emt 0:00:00]} 64. Kc2 {[%emt 0:00:00]}
Rg2+ {[%emt 0:00:00]} 65. Kc1 {[%emt 0:00:00]} Nxe7 {[%emt 0:00:00]} 66. Rxe7 {
[%emt 0:00:00]} Rg1+ {[%emt 0:00:00]} 67. Kc2 {[%emt 0:02:30]} 1-0

[Event "44th Chess Olympiad Open 2022"]
[Site "Chennai"]
[Date "2022.08.06"]
[Round "8.39"]
[White "Miguel, Sergio"]
[Black "Bastidas Rodriguez, Emilio"]
[Result "0-1"]
[WhiteElo "2274"]
[BlackElo "2351"]
[Annotator "TA"]
[PlyCount "72"]
[EventDate "2022.??.??"]
[TimeControl "60"]

{[%evp 15,72,26,29,0,20,16,58,50,46,37,68,17,35,25,15,-12,-10,-172,-182,-184,
-196,-195,-189,-218,-196,-196,-202,-230,-224,-221,-207,-260,-219,-239,-229,
-223,-185,-193,-209,-193,-193,-265,-264,-307,-300,-294,-299,-293,-268,-294,
-287,-374,-341,-590,-590,-615,-611,-636,-629]} 1. e4 {[%emt 0:00:05]} c5 {
[%emt 0:01:26]} 2. Nf3 {[%emt 0:00:10]} d6 {[%emt 0:00:43]} 3. d4 {[%emt 0:00:
00]} cxd4 {[%emt 0:00:12]} 4. Nxd4 {[%emt 0:00:01]} Nf6 {[%emt 0:00:17]} 5. Nc3
{[%emt 0:00:06]} a6 {[%emt 0:00:11]} 6. h3 {[%emt 0:00:06]} e6 {[%emt 0:00:52]}
7. g4 {[%emt 0:00:08]} d5 {[%emt 0:00:07]} 8. exd5 {[%emt 0:00:42]} Nxd5 {
[%emt 0:00:03]} 9. Bd2 {[%emt 0:00:37] B81: Sicilian Scheveningen: Keres
Attack.} Bc5 {[%emt 0:05:33]} 10. Nb3 {[%emt 0:01:44]} Be7 {[%emt 0:07:35]} 11.
Bg2 {[%emt 0:04:50] White is slightly better.} O-O {[%emt 0:00:19]} 12. O-O {
[%emt 0:00:51] [#]} Nb6 $146 {[%emt 0:04:45]} ({Predecessor:} 12... Nxc3 13.
Bxc3 Nc6 14. Qe2 Qc7 15. Rad1 Bd7 16. Rfe1 {½-½ (16) Young,A (2042)-Heaven,P
Cardiff 2014}) 13. Qe2 {[%emt 0:03:35]} (13. Bf4 $1 $14) 13... Qc7 $11 {
[%emt 0:01:40]} 14. Rad1 {[%emt 0:00:20]} Bd7 {[%emt 0:03:54]} 15. Bc1 {
[%emt 0:04:37]} Bc6 {[%emt 0:04:07]} 16. Ne4 $2 {[%emt 0:00:37] Loses the game.
} (16. Be4 $11 {and White has nothing to worry.}) 16... Bb5 $19 {[%emt 0:00:34]
} 17. Rd3 {[%emt 0:04:05]} Nc6 {[%emt 0:02:05]} 18. Nc3 {[%emt 0:08:48]} Bxd3 {
[%emt 0:00:35]} 19. Qxd3 {[%emt 0:01:09]} Nb4 {[%emt 0:02:06]} 20. Qe2 {
[%emt 0:06:16]} Rad8 {[%emt 0:16:29]} 21. Na5 {[%emt 0:13:24]} N6d5 {[%emt 0:
00:00]} 22. Nxd5 {[%emt 0:01:11]} exd5 {[%emt 0:00:00]} 23. c3 {[%emt 0:06:49]
[#]} Rfe8 $1 {[%emt 0:00:00]} 24. Nxb7 {[%emt 0:05:06]} (24. Nb3 Bg5) 24...
Qxb7 {[%emt 0:00:00]} 25. cxb4 {[%emt 0:02:55]} Bxb4 {[%emt 0:00:00]} 26. Qd3 {
[%emt 0:13:13]} Qb5 {[%emt 0:06:51]} 27. Qxb5 {[%emt 0:00:59]} axb5 {[%emt 0:
00:00]} 28. a3 {[%emt 0:00:14]} (28. Rd1 $142) 28... Be1 {[%emt 0:05:09]} 29.
Be3 {[%emt 0:03:18] [#]} d4 $1 {[%emt 0:00:07]} 30. Rxe1 {[%emt 0:00:06]
aiming for Bd2.} dxe3 {[%emt 0:00:02]} 31. fxe3 {[%emt 0:00:46] Endgame KRR-KRB
} Rd2 {[%emt 0:00:48]} 32. Bc6 {[%emt 0:03:44]} Re5 {[%emt 0:00:00]} 33. b3 {
[%emt 0:10:43]} Rc2 {[%emt 0:02:24]} 34. Rd1 $2 {[%emt 0:03:10]} (34. Bg2)
34... g6 {[%emt 0:00:25] Black is clearly winning.} 35. Bd7 {[%emt 0:00:00]}
Rxe3 {[%emt 0:01:17]} 36. Bxb5 {[%emt 0:00:46]} Rg3+ {[%emt 0:00:42] Weighted
Error Value: White=0.42/Black=0.08 (flawless)} 0-1

[Event "44th Chess Olympiad Open 2022"]
[Site "Chennai"]
[Date "2022.08.06"]
[Round "8.39"]
[White "Lutuima, Amaro"]
[Black "Esmeraldas Huachi, Anderson"]
[Result "0-1"]
[WhiteElo "2048"]
[BlackElo "2071"]
[Annotator "NA RC"]
[PlyCount "60"]
[EventDate "2022.??.??"]
[TimeControl "60"]

1. e4 {[%emt 0:03:07]} c5 {[%emt 0:00:07]} 2. Nc3 {[%emt 0:00:34]} Nc6 {
[%emt 0:00:16]} 3. Nf3 {[%emt 0:01:54]} g6 {[%emt 0:02:17]} 4. Bc4 {[%emt 0:00:
00]} Bg7 {[%emt 0:00:38]} 5. O-O {[%emt 0:00:40]} e6 {[%emt 0:00:13]} 6. Nb5 {
[%emt 0:00:31]} d6 {[%emt 0:03:45]} 7. d4 {[%emt 0:12:22]} a6 {[%emt 0:11:12]}
8. d5 {[%emt 0:00:13]} axb5 {[%emt 0:14:29]} 9. Bxb5 {[%emt 0:00:30]} Ra5 {
[%emt 0:06:58]} 10. Bxc6+ {[%emt 0:00:54]} bxc6 {[%emt 0:03:58]} 11. Bg5 {
[%emt 0:02:51]} Qc7 {[%emt 0:09:59]} 12. dxe6 {[%emt 0:08:41]} fxe6 {[%emt 0:
00:00]} 13. e5 {[%emt 0:01:48]} d5 {[%emt 0:01:07]} 14. Qd2 {[%emt 0:01:33]} h6
{[%emt 0:03:46]} 15. Bh4 {[%emt 0:01:48]} g5 {[%emt 0:00:22]} 16. Bg3 {[%emt 0:
00:00]} Ne7 {[%emt 0:00:32]} 17. h4 {[%emt 0:00:31]} g4 {[%emt 0:00:44]} 18.
Nh2 {[%emt 0:00:35]} h5 {[%emt 0:00:04]} 19. Rfe1 {[%emt 0:07:29]} Nf5 {
[%emt 0:00:17]} 20. Bf4 {[%emt 0:01:33]} Nxh4 {[%emt 0:01:41]} 21. g3 {[%emt 0:
00:00]} Ng6 {[%emt 0:00:09]} 22. f3 {[%emt 0:00:18]} gxf3 {[%emt 0:05:29]} 23.
Nxf3 {[%emt 0:00:21]} Nxf4 {[%emt 0:02:58]} 24. gxf4 {[%emt 0:01:58]} Bh6 {
[%emt 0:00:27]} 25. Nh4 {[%emt 0:10:05]} Ra4 {[%emt 0:01:21]} 26. Ng2 {[%emt 0:
00:00]} Ba6 {[%emt 0:02:06]} 27. c4 {[%emt 0:03:19]} Rxc4 {[%emt 0:00:26]} 28.
Rac1 {[%emt 0:03:19]} Rd4 {[%emt 0:05:49]} 29. Qc2 {[%emt 0:06:53]} Rg8 {
[%emt 0:00:18]} 30. Rcd1 {[%emt 0:00:24]} Rxf4 {[%emt 0:08:37]} 0-1

[Event "44th Chess Olympiad Open 2022"]
[Site "Chennai"]
[Date "2022.08.06"]
[Round "8.40"]
[White "Gourlay, Iain"]
[Black "Sultan, Ibrahim"]
[Result "1/2-1/2"]
[WhiteElo "2321"]
[BlackElo "2108"]
[Annotator "RC"]
[PlyCount "89"]
[EventDate "2022.??.??"]
[TimeControl "60"]

1. d4 {[%emt 0:00:17]} d5 {[%emt 0:00:10]} 2. Nf3 {[%emt 0:00:14]} Nf6 {
[%emt 0:00:07]} 3. g3 {[%emt 0:00:29]} Bf5 {[%emt 0:00:05]} 4. Bg2 {[%emt 0:00:
00]} e6 {[%emt 0:00:07]} 5. c4 {[%emt 0:00:47]} c6 {[%emt 0:00:06]} 6. Nc3 {
[%emt 0:00:36]} Be7 {[%emt 0:09:47]} 7. Qb3 {[%emt 0:00:38]} Qb6 {[%emt 0:00:
00]} 8. c5 {[%emt 0:00:28]} Qxb3 {[%emt 0:00:05]} 9. axb3 {[%emt 0:00:07]} O-O
{[%emt 0:00:23]} 10. b4 {[%emt 0:13:42]} a6 {[%emt 0:00:09]} 11. h3 {[%emt 0:
00:00]} h6 {[%emt 0:07:04]} 12. g4 {[%emt 0:01:24]} Bh7 {[%emt 0:00:07]} 13.
Bf4 {[%emt 0:00:51]} Nbd7 {[%emt 0:00:43]} 14. Nd2 {[%emt 0:02:59]} Rfe8 {
[%emt 0:01:31]} 15. Nb3 {[%emt 0:05:57]} Bd8 {[%emt 0:00:25]} 16. b5 {[%emt 0:
00:00]} Bc2 {[%emt 0:08:17]} 17. bxc6 {[%emt 0:04:40]} bxc6 {[%emt 0:00:05]}
18. Na5 {[%emt 0:01:53]} Bxa5 {[%emt 0:09:28]} 19. Rxa5 {[%emt 0:00:08]} e5 {
[%emt 0:00:04]} 20. dxe5 {[%emt 0:05:08]} Nxe5 {[%emt 0:01:07]} 21. Bxe5 {
[%emt 0:00:13]} Rxe5 {[%emt 0:00:07]} 22. Kd2 {[%emt 0:02:29]} Bb3 {[%emt 0:00:
00]} 23. e3 {[%emt 0:04:24]} Rb8 {[%emt 0:18:40]} 24. Rxa6 {[%emt 0:08:50]} Bc4
{[%emt 0:00:04]} 25. Rb6 {[%emt 0:00:22]} Ree8 {[%emt 0:00:12]} 26. Bf1 {
[%emt 0:19:43]} Bxf1 {[%emt 0:02:25]} 27. Rxf1 {[%emt 0:00:09]} Rxb6 {[%emt 0:
00:00]} 28. cxb6 {[%emt 0:00:06]} Nd7 {[%emt 0:00:15]} 29. Na4 {[%emt 0:04:24]}
Re4 {[%emt 0:17:02]} 30. b3 {[%emt 0:06:55]} Rb4 {[%emt 0:00:05]} 31. Kc3 {
[%emt 0:01:49]} Rb5 {[%emt 0:00:17]} 32. e4 {[%emt 0:04:40]} dxe4 {[%emt 0:00:
00]} 33. Re1 {[%emt 0:00:27]} Nf6 {[%emt 0:02:42]} 34. Kc4 {[%emt 0:05:02]} Kf8
{[%emt 0:02:30]} 35. Nc5 {[%emt 0:00:58]} Rxb6 {[%emt 0:00:06]} 36. Nxe4 {
[%emt 0:00:28]} Nxe4 {[%emt 0:00:10]} 37. Rxe4 {[%emt 0:00:05]} Rb5 {[%emt 0:
00:00]} 38. f4 {[%emt 0:00:41]} g6 {[%emt 0:01:06]} 39. b4 {[%emt 0:00:14]} Rd5
{[%emt 0:00:08]} 40. Re3 {[%emt 0:01:05]} h5 {[%emt 0:00:54]} 41. Re4 {[%emt 0:
00:00]} hxg4 {[%emt 0:17:54]} 42. hxg4 {[%emt 0:00:07]} f5 {[%emt 0:00:03]} 43.
Re6 {[%emt 0:01:47]} fxg4 {[%emt 0:00:18]} 44. Rxc6 {[%emt 0:06:54]} Rf5 {
[%emt 0:00:07]} 45. Rxg6 {[%emt 0:05:28]} 1/2-1/2

[Event "44th Chess Olympiad Open 2022"]
[Site "Chennai"]
[Date "2022.08.06"]
[Round "8.40"]
[White "Tate, Alan"]
[Black "Abdulrahman Mohammad, Al Taher"]
[Result "0-1"]
[WhiteElo "2313"]
[BlackElo "2029"]
[Annotator "RC"]
[PlyCount "112"]
[EventDate "2022.??.??"]
[TimeControl "60"]

1. e4 {[%emt 0:00:05]} c5 {[%emt 0:00:11]} 2. Nf3 {[%emt 0:00:10]} Nc6 {
[%emt 0:00:17]} 3. d4 {[%emt 0:00:08]} cxd4 {[%emt 0:00:35]} 4. Nxd4 {[%emt 0:
00:00]} g6 {[%emt 0:00:27]} 5. c4 {[%emt 0:00:18]} Nf6 {[%emt 0:00:35]} 6. Nc3
{[%emt 0:00:21]} Nxd4 {[%emt 0:00:27]} 7. Qxd4 {[%emt 0:00:09]} d6 {[%emt 0:00:
00]} 8. Be3 {[%emt 0:00:42]} Bg7 {[%emt 0:00:23]} 9. f3 {[%emt 0:00:18]} O-O {
[%emt 0:00:36]} 10. Qd2 {[%emt 0:00:16]} Be6 {[%emt 0:01:02]} 11. Rc1 {[%emt 0:
00:00]} Qa5 {[%emt 0:01:21]} 12. b3 {[%emt 0:00:55]} Rfc8 {[%emt 0:00:45]} 13.
g4 {[%emt 0:01:38]} a6 {[%emt 0:09:28]} 14. g5 {[%emt 0:00:22]} Nd7 {[%emt 0:
00:00]} 15. Nd5 {[%emt 0:00:16]} Qxd2+ {[%emt 0:05:53]} 16. Kxd2 {[%emt 0:00:
00]} Bxd5 {[%emt 0:02:07]} 17. exd5 {[%emt 0:00:03]} b5 {[%emt 0:01:08]} 18.
cxb5 {[%emt 0:13:59]} Rxc1 {[%emt 0:01:51]} 19. Kxc1 {[%emt 0:00:03]} axb5 {
[%emt 0:00:13]} 20. Kb1 {[%emt 0:00:15]} b4 {[%emt 0:07:38]} 21. Bh3 {[%emt 0:
00:00]} Nc5 {[%emt 0:10:50]} 22. Bd2 {[%emt 0:03:54]} Nxb3 {[%emt 0:09:16]} 23.
Bxb4 {[%emt 0:02:01]} Rb8 {[%emt 0:10:04]} 24. axb3 {[%emt 0:04:44]} Rxb4 {
[%emt 0:00:07]} 25. Kc2 {[%emt 0:03:30]} Rb5 {[%emt 0:04:55]} 26. Bd7 {[%emt 0:
00:00]} Rc5+ {[%emt 0:02:28]} 27. Kb1 {[%emt 0:04:45]} Rxd5 {[%emt 0:00:40]}
28. Rc1 {[%emt 0:12:15]} Rc5 {[%emt 0:06:49]} 29. b4 {[%emt 0:00:12]} Rxc1+ {
[%emt 0:03:16]} 30. Kxc1 {[%emt 0:00:02]} Be5 {[%emt 0:00:15]} 31. h4 {[%emt 0:
00:00]} Bg3 {[%emt 0:03:06]} 32. Kd2 {[%emt 0:00:06]} Bxh4 {[%emt 0:00:51]} 33.
f4 {[%emt 0:00:06]} Bg3 {[%emt 0:02:50]} 34. Ke3 {[%emt 0:00:06]} Be1 {[%emt 0:
00:00]} 35. b5 {[%emt 0:00:22]} Ba5 {[%emt 0:00:09]} 36. Ke4 {[%emt 0:05:43]}
e6 {[%emt 0:00:22]} 37. Kf3 {[%emt 0:01:17]} Kg7 {[%emt 0:01:17]} 38. Be8 {
[%emt 0:00:34]} f6 {[%emt 0:03:22]} 39. Bd7 {[%emt 0:01:20]} Kf7 {[%emt 0:00:
00]} 40. Bc8 {[%emt 0:01:00]} e5 {[%emt 0:06:02]} 41. fxe5 {[%emt 0:05:27]}
dxe5 {[%emt 0:00:11]} 42. Ke4 {[%emt 0:01:06]} fxg5 {[%emt 0:03:10]} 43. Kxe5 {
[%emt 0:00:39]} Bc7+ {[%emt 0:00:06]} 44. Ke4 {[%emt 0:05:21]} Kf6 {[%emt 0:00:
00]} 45. Bd7 {[%emt 0:06:18]} h5 {[%emt 0:00:25]} 46. Be8 {[%emt 0:06:34]} g4 {
[%emt 0:01:23]} 47. Bd7 {[%emt 0:02:34]} Kg5 {[%emt 0:01:52]} 48. Ke3 {[%emt 0:
00:00]} h4 {[%emt 0:01:23]} 49. Kf2 {[%emt 0:02:17]} h3 {[%emt 0:00:16]} 50.
Kg1 {[%emt 0:01:19]} Kh4 {[%emt 0:00:07]} 51. b6 {[%emt 0:01:08]} Bxb6+ {
[%emt 0:00:28]} 52. Kh1 {[%emt 0:00:27]} Bc7 {[%emt 0:00:15]} 53. Bc6 {[%emt 0:
00:00]} g3 {[%emt 0:00:37]} 54. Bd5 {[%emt 0:00:49]} g2+ {[%emt 0:00:15]} 55.
Bxg2 {[%emt 0:00:09]} hxg2+ {[%emt 0:00:03]} 56. Kxg2 {[%emt 0:00:08]} g5 {
[%emt 0:00:20]} 0-1